bitfinex-derivatives/quotes_BTCF0:USTF0_20250517
["timestamp","ask_amount","ask_price","bid_price","bid_amount"]
[1747459588177,0.19566785,103550.0,103540.0,3.59491146]
[1747459588776,0.19566785,103550.0,103540.0,3.53463183]
[1747459594778,0.19566785,103550.0,103540.0,2.81303183]
[1747459594982,0.19566785,103550.0,103540.0,3.53463183]
[1747459600283,0.19566785,103550.0,103540.0,3.19454279]
[1747459600485,0.19566785,103550.0,103540.0,3.53459183]
[1747459602594,0.19566785,103550.0,103540.0,3.47210731]
[1747459602796,0.15873648,103550.0,103540.0,3.47210731]
[1747459604294,0.15873648,103550.0,103540.0,3.39049367]
[1747459605700,0.15873648,103550.0,103540.0,2.66889367]
[1747459605898,0.20733648,103550.0,103540.0,3.39049367]
[1747459607596,0.20733648,103550.0,103540.0,3.45297819]
[1747459611097,0.20731822,103550.0,103540.0,2.73137819]
[1747459611302,0.20731822,103550.0,103540.0,3.45297819]
[1747459614104,0.20731822,103550.0,103540.0,2.73137819]
[1747459614406,0.20731822,103550.0,103540.0,3.45297819]
[1747459616904,0.20731822,103550.0,103540.0,3.52683542]
[1747459619093,0.20731822,103550.0,103540.0,2.80523542]
[1747459619299,0.20731822,103550.0,103540.0,3.52683542]
[1747459624002,0.17038653,103550.0,103540.0,3.53459183]
[1747459624911,0.17038653,103550.0,103540.0,2.81299183]
[1747459625104,0.17038653,103550.0,103540.0,3.53459183]
[1747459630916,0.17038653,103550.0,103540.0,3.40962279]
[1747459631116,0.17038653,103550.0,103540.0,3.53459183]
[1747459632017,0.17038653,103550.0,103540.0,3.40962279]
[1747459632207,0.17038653,103550.0,103540.0,3.53459183]
[1747459633914,0.17038653,103550.0,103540.0,3.47210731]
[1747459634415,0.17038653,103550.0,103540.0,3.53459183]
[1747459635117,0.17038653,103550.0,103540.0,3.52683921]
[1747459637431,0.17038653,103550.0,103540.0,2.80523921]
[1747459637619,0.17038653,103550.0,103540.0,3.52683921]
[1747459638922,0.23057211,103550.0,103540.0,3.46435469]
[1747459640926,0.23057211,103550.0,103540.0,3.52683921]
[1747459641126,0.17038653,103550.0,103540.0,3.52683921]
[1747459643322,0.16674141,103550.0,103540.0,3.52683921]
[1747459644233,0.12980975,103550.0,103540.0,3.53459183]
[1747459644431,0.12980975,103550.0,103540.0,3.47210731]
[1747459645026,0.12980975,103550.0,103540.0,3.53459183]
[1747459647333,0.12980975,103550.0,103540.0,3.45297819]
[1747459648540,0.12980975,103550.0,103540.0,2.73137819]
[1747459648836,0.12980975,103550.0,103540.0,3.45297819]
[1747459649728,0.12980975,103550.0,103540.0,2.73137819]
[1747459650035,0.12980975,103550.0,103540.0,3.45261819]
[1747459650933,0.12980975,103550.0,103540.0,3.52647843]
[1747459653336,0.12980975,103550.0,103540.0,2.80487843]
[1747459653538,0.12980975,103550.0,103540.0,3.52647843]
[1747459656341,0.12980975,103550.0,103540.0,3.53423183]
[1747459658740,0.12980975,103550.0,103540.0,2.81263183]
[1747459658942,0.12980975,103550.0,103540.0,3.53423183]
[1747459662739,0.08120975,103550.0,103540.0,3.53423183]
[1747459667445,0.04427881,103550.0,103540.0,3.52647577]
[1747459667747,0.09297881,103550.0,103540.0,3.52647577]
[1747459668251,0.09297881,103550.0,103540.0,2.80487577]
[1747459668551,0.09297881,103550.0,103540.0,3.52647577]
[1747459669354,0.09297881,103550.0,103540.0,2.80487577]
[1747459669654,0.09297881,103550.0,103540.0,3.52647577]
[1747459669853,0.14927881,103550.0,103540.0,3.52647577]
[1747459670854,0.14927881,103550.0,103540.0,3.31175577]
[1747459671151,0.14927881,103550.0,103540.0,3.52627577]
[1747459673655,0.20277881,103550.0,103540.0,2.80467577]
[1747459673863,0.20277881,103550.0,103540.0,3.52627577]
[1747459677157,0.20277881,103550.0,103540.0,2.80467577]
[1747459677354,0.20277881,103550.0,103540.0,3.52627577]
[1747459678062,0.10057881,103550.0,103540.0,3.52627577]
[1747459678856,0.10057881,103550.0,103540.0,2.80467577]
[1747459679060,0.10057881,103550.0,103540.0,3.52627577]
[1747459679263,0.10057881,103550.0,103540.0,3.53403183]
[1747459681060,0.04427881,103550.0,103540.0,3.53403183]
[1747459682667,0.10097881,103550.0,103540.0,3.53403183]
[1747459684969,0.10097881,103550.0,103540.0,2.81243183]
[1747459685166,0.10097881,103550.0,103540.0,3.53403183]
[1747459686068,0.10097881,103550.0,103540.0,3.40906279]
[1747459686267,0.10097881,103550.0,103540.0,3.53403183]
[1747459691176,0.10097881,103550.0,103540.0,3.45241819]
[1747459691574,0.06404874,103550.0,103540.0,3.45241819]
[1747459693564,0.06404874,103550.0,103540.0,3.32744915]
[1747459693766,0.16794874,103550.0,103540.0,3.45241819]
[1747459693968,0.16794874,103550.0,103540.0,3.53403183]
[1747459694168,0.12486367,103550.0,103540.0,3.53403183]
[1747459698788,0.12486367,103550.0,103540.0,2.81243183]
[1747459698992,0.1039,103550.0,103540.0,3.53403183]
[1747459700588,0.1039,103550.0,103540.0,3.31951183]
[1747459700789,0.159,103550.0,103540.0,3.53367183]
[1747459706492,0.16,103550.0,103540.0,3.53267183]
[1747459706792,0.161,103550.0,103540.0,3.53167183]
[1747459707786,0.161,103550.0,103540.0,2.81007183]
[1747459707986,0.161,103550.0,103540.0,3.53167183]
[1747459708489,0.161,103550.0,103540.0,3.52622967]
[1747459709590,0.161,103550.0,103540.0,3.53167183]
[1747459710995,0.161,103550.0,103540.0,2.81007183]
[1747459711197,0.161,103550.0,103540.0,3.53167183]
[1747459711995,0.161,103550.0,103540.0,2.81007183]
[1747459712198,0.161,103550.0,103540.0,3.53167183]
[1747459712506,0.161,103550.0,103540.0,3.52391111]
[1747459713096,0.161,103550.0,103540.0,2.80231111]
[1747459713296,0.161,103550.0,103540.0,3.52391111]
[1747459718001,0.12406931,103550.0,103540.0,3.53167183]
[1747459719300,0.1087,103550.0,103540.0,3.53167183]
[1747459719608,0.1087,103550.0,103540.0,3.59415635]
[1747459719809,0.0571,103550.0,103540.0,3.59415635]
[1747459720105,0.0571,103550.0,103540.0,3.53167183]
[1747459726111,0.0571,103550.0,103540.0,3.52391547]
[1747459726312,0.0571,103550.0,103540.0,3.39894643]
[1747459726508,0.0571,103550.0,103540.0,3.52391547]
[1747459729715,0.0571,103550.0,103540.0,3.53167183]
[1747459730611,0.002,103550.0,103540.0,3.53167183]
[1747459732318,0.40877269,103560.0,103550.0,0.193078]
[1747459732514,0.40877269,103560.0,103550.0,1.13489506]
[1747459732817,0.40877269,103560.0,103550.0,1.17670354]
[1747459733017,0.31846558,103560.0,103550.0,1.17670354]
[1747459733208,0.31846558,103560.0,103550.0,1.35670354]
[1747459733520,0.31846558,103560.0,103550.0,1.71750354]
[1747459733703,0.32146558,103560.0,103550.0,1.71950354]
[1747459734014,0.32446558,103560.0,103550.0,1.71950354]
[1747459734610,0.32446558,103560.0,103550.0,1.93334354]
[1747459736120,0.32446558,103560.0,103550.0,1.99367186]
[1747459737113,0.32446558,103560.0,103550.0,2.12272113]
[1747459738523,0.32446558,103560.0,103550.0,2.06023661]
[1747459738710,0.32446558,103560.0,103550.0,2.12272113]
[1747459739813,0.32446558,103560.0,103550.0,2.21928817]
[1747459741422,0.32446558,103560.0,103550.0,2.15680365]
[1747459741621,0.32446558,103560.0,103550.0,2.21928817]
[1747459742519,0.32446558,103560.0,103550.0,2.15680365]
[1747459742714,0.32446558,103560.0,103550.0,2.21928817]
[1747459743022,0.32446558,103560.0,103550.0,2.37040365]
[1747459743224,0.32446558,103560.0,103550.0,2.43288817]
[1747459743421,0.32446558,103560.0,103550.0,2.44520911]
[1747459746027,0.32446558,103560.0,103550.0,2.45065127]
[1747459746529,0.32446558,103560.0,103550.0,1.72905127]
[1747459746724,0.32446558,103560.0,103550.0,2.45065127]
[1747459748724,0.32446558,103560.0,103550.0,2.38816675]
[1747459749027,0.32446558,103560.0,103550.0,2.45065127]
[1747459751329,0.41477269,103560.0,103550.0,2.45065127]
[1747459757247,0.41477269,103560.0,103550.0,2.53226491]
[1747459760942,0.37784218,103560.0,103550.0,1.73680908]
[1747459761138,0.37784218,103560.0,103550.0,2.09760908]
[1747459761541,0.37784218,103560.0,103550.0,2.09954042]
[1747459766048,0.37784218,103560.0,103550.0,2.09177966]
[1747459766947,0.37784218,103560.0,103550.0,1.73097966]
[1747459767140,0.37784218,103560.0,103550.0,2.09177966]
[1747459768050,0.37784218,103560.0,103550.0,1.73097966]
[1747459768238,0.37784218,103560.0,103550.0,2.09177966]
[1747459769149,0.37784218,103560.0,103550.0,1.73097966]
[1747459769347,0.37784218,103560.0,103550.0,2.09177966]
[1747459770241,0.37784218,103560.0,103550.0,1.73097966]
[1747459770456,0.37784218,103560.0,103550.0,2.09177966]
[1747459771050,0.37784218,103560.0,103550.0,1.73097966]
[1747459771350,0.37784218,103560.0,103550.0,2.09177966]
[1747459773153,0.37784218,103560.0,103550.0,1.73097966]
[1747459773451,0.37784218,103560.0,103550.0,2.09177966]
[1747459776255,0.37784218,103560.0,103550.0,1.73097966]
[1747459776648,0.37784218,103560.0,103550.0,2.09177966]
[1747459778356,0.37784218,103560.0,103550.0,1.73097966]
[1747459778548,0.37784218,103560.0,103550.0,2.09177966]
[1747459779258,0.37784218,103560.0,103550.0,2.1733933]
[1747459783354,0.37784218,103560.0,103550.0,2.09954042]
[1747459783560,0.34091166,103560.0,103550.0,2.09954042]
[1747459784754,0.34091166,103560.0,103550.0,2.0370559]
[1747459785056,0.34091166,103560.0,103550.0,2.09954042]
[1747459787164,0.34091166,103560.0,103550.0,1.73874042]
[1747459787360,0.34091166,103560.0,103550.0,2.09954042]
[1747459789971,0.34091166,103560.0,103550.0,2.0370559]
[1747459790173,0.34091166,103560.0,103550.0,2.17339869]
[1747459795278,0.34091166,103560.0,103550.0,2.09178505]
[1747459796283,0.34091166,103560.0,103550.0,2.02930053]
[1747459796478,0.34091166,103560.0,103550.0,2.09178505]
[1747459796973,0.34091166,103560.0,103550.0,2.02930053]
[1747459797169,0.34091166,103560.0,103550.0,2.09178505]
[1747459798375,0.34091166,103560.0,103550.0,1.87818505]
[1747459798573,0.34091166,103560.0,103550.0,2.09118505]
[1747459798765,0.34091166,103560.0,103550.0,2.17279869]
[1747459802274,0.23421166,103560.0,103550.0,2.17279869]
[1747459803268,0.23421166,103560.0,103550.0,2.11031417]
[1747459803569,0.23421166,103560.0,103550.0,2.17279869]
[1747459805578,0.23421166,103560.0,103550.0,2.53359869]
[1747459811985,0.1972817,103560.0,103550.0,2.53359869]
[1747459812176,0.2938617,103560.0,103550.0,2.53359869]
[1747459813072,0.2408617,103560.0,103550.0,2.53359869]
[1747459813279,0.27284806,103570.0,103560.0,0.1930595]
[1747459813480,0.12034806,103570.0,103560.0,0.97233702]
[1747459813881,0.12034806,103570.0,103560.0,1.06889473]
[1747459814390,0.21690806,103570.0,103560.0,1.24889473]
[1747459814584,0.22090806,103570.0,103560.0,1.24989473]
[1747459815388,0.22390806,103570.0,103560.0,1.24989473]
[1747459816190,0.14877506,103570.0,103560.0,1.41791667]
[1747459817184,0.14877506,103570.0,103560.0,1.54791667]
[1747459817494,0.11605196,103570.0,103560.0,1.54791667]
[1747459818289,0.24056598,103590.0,103580.0,0.1930223]
[1747459818494,0.15214732,103600.0,103590.0,0.1930036]
[1747459818495,0.15049015,103600.0,103590.0,0.1930036]
[1747459818787,0.04005515,103600.0,103590.0,0.92238112]
[1747459818991,0.04005515,103600.0,103590.0,1.00835431]
[1747459819189,0.13225515,103600.0,103590.0,1.18835431]
[1747459819388,0.09654,103600.0,103590.0,1.29389173]
[1747459819799,0.03757,103600.0,103590.0,1.29489173]
[1747459820287,0.1546,103610.0,103600.0,0.292985]
[1747459820487,0.1546,103610.0,103600.0,1.25621404]
[1747459820685,0.1546,103610.0,103600.0,1.30541404]
[1747459821083,0.1546,103610.0,103600.0,1.48541404]
[1747459821283,0.1546,103610.0,103600.0,1.360445]
[1747459821587,0.1546,103610.0,103600.0,1.42292952]
[1747459822286,0.1576,103610.0,103600.0,1.42292952]
[1747459822695,0.1576,103610.0,103600.0,1.360445]
[1747459822887,0.1576,103610.0,103600.0,1.42292952]
[1747459823288,0.1586,103610.0,103600.0,1.360445]
[1747459823592,0.1586,103610.0,103600.0,1.42292952]
[1747459825895,0.1586,103610.0,103600.0,1.5515799]
[1747459826602,0.1586,103610.0,103600.0,1.48909538]
[1747459826895,0.1586,103610.0,103600.0,1.33973538]
[1747459827098,0.1586,103610.0,103600.0,0.9768199]
[1747459827301,1.12137092,103610.0,103600.0,0.50163538]
[1747459827489,1.12137092,103610.0,103600.0,0.92703538]
[1747459827692,1.12137092,103610.0,103600.0,0.71439538]
[1747459827993,1.12137092,103610.0,103600.0,0.92703538]
[1747459828194,1.30137092,103610.0,103600.0,0.74703538]
[1747459828784,1.30137092,103610.0,103600.0,0.32163538]
[1747459828986,1.30137092,103610.0,103600.0,0.04965038]
[1747459828987,1.36385544,103610.0,103600.0,0.04965038]
[1747459829187,0.192985,103600.0,103590.0,0.7167824]
[1747459829395,0.192985,103600.0,103590.0,0.76565129]
[1747459829396,0.77825404,103600.0,103590.0,0.76565129]
[1747459829596,1.06229752,103600.0,103590.0,0.76565129]
[1747459830096,1.24229752,103600.0,103590.0,0.76565129]
[1747459830598,1.24429752,103600.0,103590.0,0.76565129]
[1747459832200,1.24429752,103600.0,103590.0,0.55305129]
[1747459832499,1.24429752,103600.0,103590.0,0.7167824]
[1747459832799,0.88349752,103600.0,103590.0,0.7167824]
[1747459833000,1.24429752,103600.0,103590.0,0.7167824]
[1747459834400,1.181813,103600.0,103590.0,0.7167824]
[1747459834701,1.24429752,103600.0,103590.0,0.7167824]
[1747459835100,1.24429752,103600.0,103590.0,0.4272906]
[1747459835303,1.24429752,103600.0,103590.0,0.6202942]
[1747459836206,1.24429752,103600.0,103590.0,0.65697658]
[1747459836395,1.24429752,103600.0,103590.0,0.66241874]
[1747459837307,1.24429752,103600.0,103590.0,0.65697658]
[1747459838309,1.24429752,103600.0,103590.0,0.66241874]
[1747459839210,1.15433826,103600.0,103590.0,0.23705874]
[1747459839400,1.15433826,103600.0,103590.0,0.66237874]
[1747459840210,0.90433826,103600.0,103590.0,0.66237874]
[1747459843314,0.90433826,103600.0,103590.0,0.71337874]
[1747459846907,0.90433826,103600.0,103590.0,0.50081874]
[1747459847113,0.90433826,103600.0,103590.0,0.71333874]
[1747459847316,0.96682278,103600.0,103590.0,0.71333874]
[1747459847510,0.96682278,103600.0,103590.0,0.04405514]
[1747459847713,0.84185374,103600.0,103590.0,0.04405514]
[1747459847906,0.96682278,103600.0,103590.0,0.04405514]
[1747459848106,1.14682278,103600.0,103590.0,0.04405514]
[1747459848506,1.14682278,103600.0,103590.0,0.03861298]
[1747459849405,1.17672446,103600.0,103590.0,0.03861298]
[1747459852620,1.17672446,103600.0,103590.0,0.08671298]
[1747459853219,1.22882446,103600.0,103590.0,0.08671298]
[1747459853720,1.22882446,103600.0,103590.0,0.09215514]
[1747459854021,1.22882446,103600.0,103590.0,0.05547276]
[1747459855221,1.04882446,103600.0,103590.0,0.05547276]
[1747459855718,1.04882446,103600.0,103590.0,0.10347276]
[1747459856121,1.22882446,103600.0,103590.0,0.10347276]
[1747459857222,1.04882446,103600.0,103590.0,0.10347276]
[1747459857616,0.95229646,103600.0,103590.0,0.10347276]
[1747459858125,1.13229646,103600.0,103590.0,0.10347276]
[1747459858621,1.13229646,103600.0,103590.0,0.0980306]
[1747459859022,1.01235404,103600.0,103590.0,0.13471298]
[1747459859620,0.1930036,103590.0,103580.0,0.11566251]
[1747459859826,0.78237264,103590.0,103580.0,0.16556251]
[1747459860123,0.1930222,103580.0,103570.0,0.21252]
[1747459860325,0.78239124,103580.0,103570.0,0.31362]
[1747459861023,0.71990672,103580.0,103570.0,0.31362]
[1747459861625,0.71990672,103580.0,103570.0,0.1011]
[1747459861921,0.90288188,103580.0,103570.0,0.1011]
[1747459862619,0.90288188,103580.0,103570.0,0.1031]
[1747459862820,0.90288188,103580.0,103570.0,0.1506]
[1747459863325,0.90288188,103580.0,103570.0,0.1546]
[1747459864225,0.54208188,103580.0,103570.0,0.1546]
[1747459864423,1.26368188,103580.0,103570.0,0.1546]
[1747459865627,1.20119736,103580.0,103570.0,0.1546]
[1747459865814,1.20119736,103580.0,103570.0,0.16004216]
[1747459866013,0.67431284,103580.0,103570.0,0.41556758]
[1747459866229,0.67431284,103580.0,103570.0,0.59556758]
[1747459866424,0.67431284,103580.0,103570.0,0.53308306]
[1747459867021,0.70660318,103580.0,103570.0,0.53308306]
[1747459867226,0.75760318,103580.0,103570.0,0.53308306]
[1747459867731,0.75760318,103580.0,103570.0,0.5276409]
[1747459868728,0.75760318,103580.0,103570.0,0.53308306]
[1747459869228,0.64411866,103580.0,103570.0,0.53308306]
[1747459869622,0.64411866,103580.0,103570.0,0.59556758]
[1747459870831,0.64411866,103580.0,103570.0,0.53308306]
[1747459871235,0.70660318,103580.0,103570.0,0.74548306]
[1747459874222,0.70660318,103580.0,103570.0,0.74544306]
[1747459874429,0.75750318,103580.0,103570.0,0.53308306]
[1747459874628,0.75750318,103580.0,103570.0,0.55240216]
[1747459874829,0.75750318,103580.0,103570.0,0.75952]
[1747459875043,0.80540318,103580.0,103570.0,0.75952]
[1747459875740,1.16620318,103580.0,103570.0,0.46100121]
[1747459875931,1.16620318,103580.0,103570.0,0.46644337]
[1747459876134,1.16620318,103580.0,103570.0,0.28644337]
[1747459877039,1.16620318,103580.0,103570.0,0.28100121]
[1747459877639,1.10371866,103580.0,103570.0,0.28100121]
[1747459877840,1.16620318,103580.0,103570.0,0.28100121]
[1747459878433,1.19639736,103580.0,103570.0,0.28100121]
[1747459881543,1.19639736,103580.0,103570.0,0.1546]
[1747459883842,1.25888188,103580.0,103570.0,0.1546]
[1747459884150,1.25888188,103580.0,103570.0,0.16004216]
[1747459884442,1.19639736,103580.0,103570.0,0.16004216]
[1747459884647,1.25888188,103580.0,103570.0,0.16004216]
[1747459889248,0.89808188,103580.0,103570.0,0.18566076]
[1747459889743,0.53728188,103580.0,103570.0,0.18566076]
[1747459889951,0.89808188,103580.0,103570.0,0.18566076]
[1747459890857,0.94728188,103580.0,103570.0,0.18566076]
[1747459891150,0.88479736,103580.0,103570.0,0.18566076]
[1747459891646,0.94728188,103580.0,103570.0,0.16004216]
[1747459892151,0.94728188,103580.0,103570.0,0.1546]
[1747459892951,0.58648188,103580.0,103570.0,0.1546]
[1747459893144,0.94728188,103580.0,103570.0,0.16004216]
[1747459894152,0.94728188,103580.0,103570.0,0.1546]
[1747459897255,0.94728188,103580.0,103570.0,0.16004216]
[1747459898146,0.94728188,103580.0,103570.0,0.21601963]
[1747459898960,0.82231284,103580.0,103570.0,0.21601963]
[1747459899149,0.94728188,103580.0,103570.0,0.21601963]
[1747459900452,0.82679124,103580.0,103570.0,0.21601963]
[1747459900657,0.82679124,103580.0,103570.0,0.42837963]
[1747459901157,0.82679124,103580.0,103570.0,0.60837963]
[1747459901358,0.82679124,103580.0,103570.0,0.61382179]
[1747459902159,0.82679124,103580.0,103570.0,0.55240216]
[1747459905853,0.94744857,103580.0,103570.0,0.55240216]
[1747459906355,0.94744857,103580.0,103570.0,0.34004216]
[1747459907365,0.94744857,103580.0,103570.0,0.3346]
[1747459907762,1.30824857,103580.0,103570.0,0.3346]
[1747459908361,1.30824857,103580.0,103570.0,0.1546]
[1747459911166,1.30824857,103580.0,103570.0,0.3346]
[1747459912173,1.30824857,103580.0,103570.0,0.1546]
[1747459912359,1.30824857,103580.0,103570.0,0.16004216]
[1747459914067,1.30824857,103580.0,103570.0,0.34004216]
[1747459915267,1.18759124,103580.0,103570.0,0.34004216]
[1747459915460,1.0626222,103580.0,103570.0,0.34004216]
[1747459915658,1.18759124,103580.0,103570.0,0.34004216]
[1747459916171,1.18759124,103580.0,103570.0,0.16004216]
[1747459917071,1.18759124,103580.0,103570.0,0.34004216]
[1747459921075,1.33751927,103580.0,103570.0,0.34004216]
[1747459921270,0.61591927,103580.0,103570.0,0.34004216]
[1747459921487,1.33751927,103580.0,103570.0,0.34004216]
[1747459922689,0.61591927,103580.0,103570.0,0.34004216]
[1747459922883,1.33751927,103580.0,103570.0,0.34004216]
[1747459923088,1.27503475,103580.0,103570.0,0.34004216]
[1747459923488,1.33751927,103580.0,103570.0,0.34004216]
[1747459929093,1.27503475,103580.0,103570.0,0.34004216]
[1747459929988,1.27503475,103580.0,103570.0,0.46730364]
[1747459931295,0.55343475,103580.0,103570.0,0.46730364]
[1747459931489,0.1930594,103560.0,103550.0,0.18095883]
[1747459931798,0.61634392,103560.0,103550.0,0.60523883]
[1747459931982,0.66444392,103560.0,103550.0,0.54491051]
[1747459932187,0.66444392,103560.0,103550.0,0.72491051]
[1747459932698,0.66644392,103560.0,103550.0,0.74091051]
[1747459932896,0.71624392,103560.0,103550.0,0.79341051]
[1747459933998,0.71424392,103560.0,103550.0,0.70392044]
[1747459934305,0.71424392,103560.0,103550.0,0.70492044]
[1747459934595,0.83480784,103560.0,103550.0,0.65971134]
[1747459934792,0.83480784,103560.0,103550.0,0.75401134]
[1747459935398,0.77232332,103560.0,103550.0,0.75401134]
[1747459935597,0.83480784,103560.0,103550.0,0.75401134]
[1747459937800,0.83480784,103560.0,103550.0,0.80315582]
[1747459939201,0.47400784,103560.0,103550.0,0.80315582]
[1747459939403,0.83480784,103560.0,103550.0,0.80315582]
[1747459939708,0.83480784,103560.0,103550.0,0.80859798]
[1747459941103,0.47400784,103560.0,103550.0,0.80859798]
[1747459941301,0.83480784,103560.0,103550.0,0.80859798]
[1747459943212,0.47400784,103560.0,103550.0,0.80859798]
[1747459943409,0.83480784,103560.0,103550.0,0.80859798]
[1747459944800,0.77232332,103560.0,103550.0,0.80859798]
[1747459945009,0.78670784,103560.0,103550.0,0.57739608]
[1747459945198,0.78670784,103560.0,103550.0,1.00143608]
[1747459946608,0.78670784,103560.0,103550.0,0.57739608]
[1747459946807,0.67442332,103560.0,103550.0,1.0639206]
[1747459947314,0.31362332,103560.0,103550.0,1.0639206]
[1747459948195,0.31362332,103560.0,103550.0,1.4247206]
[1747459948700,0.31362332,103560.0,103550.0,1.0639206]
[1747459949107,0.31362332,103560.0,103550.0,1.4247206]
[1747459949308,0.34359448,103560.0,103550.0,1.4247206]
[1747459949610,0.34359448,103560.0,103550.0,1.0639206]
[1747459950911,0.34359448,103560.0,103550.0,1.4247206]
[1747459951103,0.34359448,103560.0,103550.0,1.0639206]
[1747459953521,0.34359448,103560.0,103550.0,1.00143608]
[1747459954220,0.34359448,103560.0,103550.0,1.00139608]
[1747459954403,0.766879,103560.0,103550.0,0.40017296]
[1747459954609,0.816679,103560.0,103550.0,0.82417296]
[1747459954831,0.863679,103560.0,103550.0,0.82413296]
[1747459955313,0.863679,103560.0,103550.0,1.01721086]
[1747459955817,0.92616352,103560.0,103550.0,0.40017296]
[1747459956016,0.863679,103560.0,103550.0,0.8186908]
[1747459956210,0.912179,103560.0,103550.0,0.8186908]
[1747459956914,0.912179,103560.0,103550.0,0.82413296]
[1747459957116,0.912179,103560.0,103550.0,1.01721106]
[1747459958416,0.915179,103560.0,103550.0,1.01621106]
[1747459958621,0.97552889,103560.0,103550.0,0.9512116]
[1747459959020,0.97552889,103560.0,103550.0,0.9472116]
[1747459959220,0.97652889,103560.0,103550.0,0.9472116]
[1747459960008,0.97652889,103560.0,103550.0,0.5232516]
[1747459960208,0.97652889,103560.0,103550.0,0.9472116]
[1747459961819,0.88620784,103560.0,103550.0,0.9472116]
[1747459964110,0.88620784,103560.0,103550.0,0.7541335]
[1747459964308,0.88620784,103560.0,103550.0,0.9472113]
[1747459964508,0.82372332,103560.0,103550.0,0.9472113]
[1747459964725,0.88620784,103560.0,103550.0,0.9472113]
[1747459966716,0.88620784,103560.0,103550.0,0.7541335]
[1747459967415,0.97663309,103560.0,103550.0,0.9472114]
[1747459968420,0.97663309,103560.0,103550.0,0.7541335]
[1747459969224,0.97663309,103560.0,103550.0,0.88103082]
[1747459970120,0.88620784,103560.0,103550.0,0.88103082]
[1747459971122,0.52540784,103560.0,103550.0,0.88103082]
[1747459971323,0.88620784,103560.0,103550.0,0.88103082]
[1747459971922,0.88620784,103560.0,103550.0,0.45715082]
[1747459972221,0.88620784,103560.0,103550.0,1.07390862]
[1747459973625,0.88620784,103560.0,103550.0,0.88083082]
[1747459973923,0.94869236,103560.0,103550.0,1.07390862]
[1747459974118,0.88620784,103560.0,103550.0,1.07386862]
[1747459977528,0.88620784,103560.0,103550.0,0.41215082]
[1747459978432,0.94869236,103560.0,103550.0,0.41215082]
[1747459978833,0.94869236,103560.0,103550.0,0.62391082]
[1747459979729,0.94869236,103560.0,103550.0,0.41215082]
[1747459979929,0.94869236,103560.0,103550.0,0.62391082]
[1747459980437,0.88620784,103560.0,103550.0,0.62391082]
[1747459982341,0.94869236,103560.0,103550.0,0.62391082]
[1747459983337,0.94869236,103560.0,103550.0,0.41215082]
[1747459983539,0.94869236,103560.0,103550.0,0.36285082]
[1747459983727,0.94869236,103560.0,103550.0,0.31435082]
[1747459984541,0.82812844,103560.0,103550.0,0.31435082]
[1747459985038,0.82812844,103560.0,103550.0,0.36355082]
[1747459985942,0.82812844,103560.0,103550.0,0.41125082]
[1747459986142,0.82812844,103560.0,103550.0,0.23125082]
[1747459988149,0.82812844,103560.0,103550.0,0.41125082]
[1747459988535,0.82812844,103560.0,103550.0,0.33345031]
[1747459989038,0.7031594,103560.0,103550.0,0.33345031]
[1747459989346,0.82812844,103560.0,103550.0,0.33345031]
[1747459990043,0.82812844,103560.0,103550.0,0.37975031]
[1747459991151,0.9486943,103560.0,103550.0,0.37975031]
[1747459992448,0.9486943,103560.0,103550.0,0.33345031]
[1747459993647,0.9486943,103560.0,103550.0,0.23655031]
[1747459994242,0.97805647,103560.0,103550.0,0.05655031]
[1747459997243,0.1930776,103550.0,103540.0,0.34260955]
[1747459997552,0.6938776,103550.0,103540.0,0.34260955]
[1747459997749,0.75636212,103550.0,103540.0,0.34260955]
[1747459998142,0.75636212,103550.0,103540.0,0.52260955]
[1747459998349,0.75736212,103550.0,103540.0,0.52260955]
[1747459999751,0.87786123,103550.0,103540.0,0.52260955]
[1747460000449,0.87786123,103550.0,103540.0,0.52360955]
[1747460001549,0.81537671,103550.0,103540.0,0.52360955]
[1747460001754,0.94034575,103550.0,103540.0,0.52360955]
[1747460002054,0.94034575,103550.0,103540.0,0.31176955]
[1747460002550,0.87786123,103550.0,103540.0,0.31176955]
[1747460002753,0.94034575,103550.0,103540.0,0.31176955]
[1747460003241,0.94034575,103550.0,103540.0,0.13176955]
[1747460003950,0.94034575,103550.0,103540.0,0.0949]
[1747460004149,0.94034575,103550.0,103540.0,0.2749]
[1747460004350,0.87786123,103550.0,103540.0,0.2749]
[1747460004654,0.87786123,103550.0,103540.0,0.2283]
[1747460005154,0.87786123,103550.0,103540.0,0.05319247]
[1747460005346,0.75736212,103550.0,103540.0,0.05319247]
[1747460006352,0.75736212,103550.0,103540.0,0.09919247]
[1747460007148,0.75736212,103550.0,103540.0,0.2743]
[1747460008256,0.75736212,103550.0,103540.0,0.0943]
[1747460008656,0.90729015,103550.0,103540.0,0.0943]
[1747460009253,0.90729015,103550.0,103540.0,0.2743]
[1747460009651,0.90729015,103550.0,103540.0,0.3212]
[1747460011352,0.85989015,103550.0,103540.0,0.3212]
[1747460012162,0.98035402,103550.0,103540.0,0.3212]
[1747460013358,1.34115402,103550.0,103540.0,0.3212]
[1747460014954,1.34115402,103550.0,103540.0,0.32664216]
[1747460015359,0.61955402,103550.0,103540.0,0.32664216]
[1747460015656,1.34115402,103550.0,103540.0,0.32664216]
[1747460016154,0.61955402,103550.0,103540.0,0.32664216]
[1747460016350,1.34115402,103550.0,103540.0,0.32664216]
[1747460018147,0.61955402,103550.0,103540.0,0.32664216]
[1747460018346,1.34115402,103550.0,103540.0,0.32664216]
[1747460019856,0.93255402,103550.0,103540.0,0.32664216]
[1747460020156,0.81209015,103550.0,103540.0,0.32664216]
[1747460021768,0.76729015,103550.0,103540.0,0.51973846]
[1747460022654,0.61736212,103550.0,103540.0,0.51973846]
[1747460025462,0.73793558,103550.0,103540.0,0.51973846]
[1747460025661,0.37713558,103550.0,103540.0,0.51973846]
[1747460025862,0.73793558,103550.0,103540.0,0.51973846]
[1747460026068,0.78433558,103550.0,103540.0,0.53840216]
[1747460026559,0.83133558,103550.0,103540.0,0.53840216]
[1747460026762,0.83133558,103550.0,103540.0,0.32664216]
[1747460026964,0.83133558,103550.0,103540.0,0.53828216]
[1747460027361,0.83133558,103550.0,103540.0,0.75040216]
[1747460027865,0.83133558,103550.0,103540.0,0.32664216]
[1747460028064,0.87473558,103550.0,103540.0,0.32664216]
[1747460029260,0.87473558,103550.0,103540.0,0.27974216]
[1747460031968,0.87473558,103550.0,103540.0,0.32424216]
[1747460032163,0.81225106,103550.0,103540.0,0.32424216]
[1747460032363,0.87473558,103550.0,103540.0,0.32424216]
[1747460034263,0.75416212,103550.0,103540.0,0.32424216]
[1747460035767,0.75416212,103550.0,103540.0,0.27974216]
[1747460037161,0.90409015,103550.0,103540.0,0.27974216]
[1747460042875,0.90409015,103550.0,103540.0,0.32164216]
[1747460044574,0.86069015,103550.0,103540.0,0.32164216]
[1747460045465,0.90619015,103550.0,103540.0,0.32164216]
[1747460047071,0.84370563,103550.0,103540.0,0.32164216]
[1747460047267,0.90619015,103550.0,103540.0,0.32164216]
[1747460047469,0.86069015,103550.0,103540.0,0.32164216]
[1747460048080,0.49989015,103550.0,103540.0,0.32164216]
[1747460048380,0.86069015,103550.0,103540.0,0.32164216]